fUSD/lending_fUSD_20260401
["ID","MTS","AMOUNT","RATE_DAILY","PERIOD"]
[419188341,1775013038211,-151.0,0.00010116,2]
[419188342,1775013038220,-151.0,0.00010116,2]
[419188343,1775013038230,-500.12335694,0.00010173,2]
[419188344,1775013038240,-477.69648607,0.00010173,2]
[419188345,1775013038250,-500.85843489,0.00010173,2]
[419188346,1775013038259,-1940.0,0.00010267,2]
[419188347,1775013038268,-1086.0,0.00010288,2]
[419188348,1775013038278,-1293.0,0.00010308,2]
[419188349,1775013038287,-200.0,0.0001031,2]
[419188350,1775013038295,-512.0,0.00010329,2]
[419188351,1775013038305,-1758.0,0.00010349,2]
[419188352,1775013038314,-234.0,0.0001037,2]
[419188353,1775013038323,-247.0,0.0001039,2]
[419188354,1775013038332,-1050.0,0.00010411,2]
[419188355,1775013038341,-1000.0,0.00010521,2]
[419188356,1775013038350,-1000.0,0.00010521,2]
[419188357,1775013038359,-1000.0,0.00010521,2]
[419188358,1775013038368,-1000.0,0.00010521,2]
[419188359,1775013038377,-502.99147901,0.00010521,2]
[419188360,1775013038386,-1600.0,0.00010576,2]
[419188361,1775013038395,-1393.61,0.00010579,2]
[419188362,1775013038407,-313.0,0.00010749,2]
[419188363,1775013038419,-151.0,0.00010832,2]
[419188364,1775013038428,-1933.0805,0.00010932,2]
[419188365,1775013038438,-189.46461618,0.00010959,2]
[419188366,1775013038447,-195.0,0.0001097,2]
[419188367,1775013038456,-195.0,0.0001097,2]
[419188368,1775013038464,-195.0,0.0001097,2]
[419188369,1775013038473,-195.0,0.0001097,2]
[419188370,1775013038482,-275.10365692,0.0001097,2]
[419188371,1775013038491,-5000.0,0.0001097,2]
[419188373,1775013038500,-250.0,0.0001097,2]
[419188375,1775013038510,-300.0,0.0001097,2]
[419188376,1775013038519,-300.0,0.0001097,2]
[419188378,1775013038528,-300.0,0.0001097,2]
[419188380,1775013038536,-300.0,0.0001097,2]
[419188381,1775013038545,-301.88355522,0.0001097,2]
[419188382,1775013038554,-153.0,0.00010997,2]
[419188383,1775013038563,-1680.0,0.00010998,2]
[419188384,1775013038572,-600.0,0.00010999,2]
[419188385,1775013038581,-600.0,0.00010999,2]
[419188386,1775013038591,-600.0,0.00010999,2]
[419188387,1775013038600,-600.0,0.00010999,2]
[419188388,1775013038610,-600.0,0.00010999,2]
[419188389,1775013038619,-1758.88630873,0.00011,2]
[419188390,1775013038628,-164.05,0.00011059,2]
[419188391,1775013038637,-501.29164834,0.00011068,2]
[419188392,1775013038646,-1500.0,0.00011068,2]
[419188393,1775013038655,-1500.0,0.00011068,2]
[419188394,1775013038664,-1500.0,0.00011068,2]
[419188395,1775013038674,-192.8779,0.000113,7]
[419188396,1775013038683,-841.98,0.00011375,2]
[419188397,1775013038692,-2000.0,0.00011616,2]
[419188398,1775013038702,-502.12032678,0.00011616,2]
[419188399,1775013038711,-2000.0,0.00011616,2]
[419188400,1775013038720,-500.0,0.00011894,2]
[419188401,1775013038729,-500.0,0.00011894,2]
[419188402,1775013038738,-500.0,0.00011894,2]
[419188403,1775013038748,-500.0,0.00011894,2]
[419188404,1775013038757,-500.0,0.00011894,2]
[419188405,1775013038766,-500.0,0.00011894,2]
[419188406,1775013038777,-500.0,0.00011894,2]
[419188407,1775013038787,-500.0,0.00011894,2]
[419188408,1775013038796,-500.0,0.00011894,2]
[419188409,1775013038807,-500.0,0.00011894,2]
[419188410,1775013038816,-732.0,0.00011894,2]
[419188411,1775013038828,-500.0,0.00011894,2]
[419188412,1775013038838,-732.0,0.00011894,2]
[419188413,1775013038849,-464.09246551,0.00011894,2]
[419188414,1775013038858,-732.0,0.00011894,2]
[419188415,1775013038868,-732.0,0.00011894,2]
[419188416,1775013038877,-732.0,0.00011894,2]
[419188417,1775013038887,-732.0,0.00011894,2]
[419188418,1775013038897,-732.0,0.00011894,2]
[419188419,1775013038907,-732.0,0.00011894,2]
[419188420,1775013038916,-732.0,0.00011894,2]
[419188421,1775013038926,-732.0,0.00011894,2]
[419188422,1775013038935,-732.0,0.00011894,2]
[419188423,1775013038944,-732.0,0.00011894,2]
[419188424,1775013038954,-732.0,0.00011894,2]
[419188425,1775013038965,-732.0,0.00011894,2]
[419188426,1775013038975,-732.0,0.00011894,2]
[419188427,1775013038986,-732.0,0.00011894,2]
[419188428,1775013038996,-732.0,0.00011894,2]
[419188429,1775013039006,-732.0,0.00011894,2]
[419188430,1775013039016,-732.0,0.00011894,2]
[419188431,1775013039026,-732.0,0.00011894,2]
[419188432,1775013039036,-732.0,0.00011894,2]
[419188433,1775013039045,-500.0,0.00011894,2]
[419188434,1775013039054,-500.0,0.00011894,2]
[419188435,1775013039064,-500.0,0.00011894,2]
[419188436,1775013039072,-500.0,0.00011894,2]
[419188437,1775013039082,-500.0,0.00011894,2]
[419188438,1775013039091,-500.0,0.00011894,2]
[419188439,1775013039100,-500.0,0.00011894,2]
[419188440,1775013039109,-732.0,0.00011894,2]
[419188441,1775013039118,-500.0,0.00011894,2]
[419188442,1775013039127,-167.7403778,0.00011894,2]
[419188443,1775013039137,-732.0,0.00011894,2]
[419188444,1775013039147,-1600.0,0.00011898,2]
[419188445,1775013039157,-250.0,0.00012034,2]
[419188446,1775013039167,-2351.0,0.00012097,2]
[419188447,1775013039176,-2500.0,0.00012164,2]
[419188448,1775013039186,-2003.72186462,0.00012164,2]
[419188449,1775013039197,-222.92,0.00012426,30]
[419188450,1775013039206,-248.0126,0.000127,12]
[419188451,1775013039215,-1954.1981373,0.00012712,2]
[419188452,1775013039224,-2846.31,0.00012803,2]
[419188453,1775013039234,-374.83,0.00012833,2]
[419188454,1775013039243,-3326.07,0.00012893,2]
[419188455,1775013039252,-9999.99,0.00012893,2]
[419188456,1775013039262,-1210.26,0.00012893,2]
[419188457,1775013039271,-999.71960539,0.00012924,2]
[419188458,1775013039280,-350.57119261,0.00012925,2]
[419188459,1775013039289,-58232.98081276,0.00012999,2]
[419188460,1775013039298,-504.0,0.00013111,2]
[419188461,1775013039307,-504.0,0.00013111,2]
[419188462,1775013039316,-166.0,0.00013151,2]
[419188463,1775013039326,-166.0,0.00013151,2]
[419188464,1775013039338,-168.03458134,0.00013151,2]
[419188465,1775013039348,-445.84,0.00013184,30]
[419188466,1775013039357,-1600.0,0.0001322,2]
[419188467,1775013039369,-3292.0,0.00013307,2]
[419188468,1775013039379,-3240.0,0.00013425,2]
[419188469,1775013039388,-1000.0,0.000135,2]
[419188470,1775013039398,-5727.0035824,0.00013598,2]
[419188471,1775013039407,-500.0,0.00013698,2]
[419188472,1775013039416,-350.37058547,0.00013698,2]
[419188473,1775013039425,-500.0,0.00013698,2]
[419188474,1775013039435,-500.0,0.00013698,2]
[419188475,1775013039444,-500.0,0.00013698,2]
[419188476,1775013039453,-500.0,0.00013698,2]
[419188477,1775013039464,-500.0,0.00013698,2]
[419188478,1775013039473,-500.0,0.00013698,2]
[419188479,1775013039484,-500.0,0.00013698,2]
[419188480,1775013039495,-500.0,0.00013698,2]
[419188481,1775013039504,-500.0,0.00013698,2]
[419188482,1775013039513,-500.0,0.00013698,2]
[419188483,1775013039523,-500.0,0.00013698,2]
[419188484,1775013039532,-500.0,0.00013698,2]
[419188485,1775013039541,-500.0,0.00013698,2]
[419188486,1775013039551,-500.0,0.00013698,2]
[419188487,1775013039560,-500.0,0.00013698,2]
[419188488,1775013039571,-500.0,0.00013698,2]
[419188489,1775013039580,-500.0,0.00013698,2]
[419188490,1775013039590,-500.0,0.00013698,2]
[419188491,1775013039599,-500.0,0.00013698,2]
[419188492,1775013039608,-500.0,0.00013698,2]
[419188493,1775013039617,-500.0,0.00013698,2]
[419188494,1775013039626,-500.0,0.00013698,2]
[419188495,1775013039636,-500.0,0.00013698,2]
[419188496,1775013039645,-500.0,0.00013698,2]
[419188497,1775013039654,-500.0,0.00013698,2]
[419188498,1775013039666,-500.0,0.00013698,2]
[419188499,1775013039675,-500.0,0.00013698,2]
[419188500,1775013039684,-500.0,0.00013698,2]
[419188501,1775013039693,-500.0,0.00013698,2]
[419188502,1775013039702,-500.0,0.00013698,2]
[419188503,1775013039712,-500.0,0.00013698,2]
[419188504,1775013039721,-500.0,0.00013698,2]
[419188505,1775013039730,-540.78906624,0.00013698,2]
[419188506,1775013039739,-500.0,0.00013698,2]
[419188507,1775013039749,-500.0,0.00013698,2]
[419188508,1775013039758,-500.0,0.00013698,2]
[419188509,1775013039767,-500.0,0.00013698,2]
[419188510,1775013039777,-500.0,0.00013698,2]
[419188511,1775013039786,-500.0,0.00013698,2]
[419188512,1775013039795,-500.0,0.00013698,2]
[419188513,1775013039805,-500.0,0.00013698,2]
[419188514,1775013039814,-500.0,0.00013698,2]
[419188515,1775013039824,-500.0,0.00013698,2]
[419188516,1775013039833,-500.0,0.00013698,2]
[419188517,1775013039842,-500.0,0.00013698,2]
[419188518,1775013039851,-500.0,0.00013698,2]
[419188519,1775013039860,-500.0,0.00013698,2]
[419188520,1775013039869,-500.0,0.00013698,2]
[419188521,1775013039879,-500.0,0.00013698,2]
[419188522,1775013039888,-500.0,0.00013698,2]
[419188523,1775013039898,-500.0,0.00013698,2]
[419188524,1775013039908,-500.0,0.00013698,2]
[419188525,1775013039917,-500.0,0.00013698,2]
[419188526,1775013039927,-500.0,0.00013698,2]
[419188527,1775013039936,-500.0,0.00013698,2]
[419188528,1775013039945,-500.0,0.00013698,2]
[419188529,1775013039956,-500.0,0.00013698,2]
[419188530,1775013039966,-500.0,0.00013698,2]
[419188531,1775013039975,-500.0,0.00013698,2]
[419188532,1775013039985,-500.0,0.00013698,2]
[419188533,1775013039995,-500.0,0.00013698,2]
[419188534,1775013040005,-500.0,0.00013698,2]
[419188535,1775013040015,-500.0,0.00013698,2]
[419188536,1775013040024,-500.0,0.00013698,2]
[419188537,1775013040033,-500.0,0.00013698,2]
[419188538,1775013040044,-500.0,0.00013698,2]
[419188539,1775013040055,-500.0,0.00013698,2]
[419188540,1775013040065,-500.0,0.00013698,2]
[419188542,1775013040074,-500.0,0.00013698,2]
[419188544,1775013040084,-500.0,0.00013698,2]
[419188547,1775013040093,-500.0,0.00013698,2]
[419188549,1775013040102,-561.2360171,0.00013698,2]
[419188550,1775013040111,-500.0,0.00013698,2]
[419188551,1775013040120,-500.0,0.00013698,2]
[419188552,1775013040129,-500.0,0.00013698,2]
[419188554,1775013040139,-500.0,0.00013698,2]
[419188556,1775013040148,-500.0,0.00013698,2]
[419188558,1775013040157,-500.0,0.00013698,2]
[419188560,1775013040166,-500.0,0.00013698,2]
[419188562,1775013040175,-500.0,0.00013698,2]
[419188564,1775013040184,-500.0,0.00013698,2]
[419188566,1775013040194,-500.0,0.00013698,2]
[419188569,1775013040204,-500.0,0.00013698,2]
[419188570,1775013040213,-500.0,0.00013698,2]
[419188572,1775013040223,-500.0,0.00013698,2]
[419188575,1775013040233,-500.0,0.00013698,2]
[419188577,1775013040242,-500.0,0.00013698,2]
[419188578,1775013040251,-618.03329484,0.00013698,2]
[419188581,1775013040261,-500.0,0.00013698,2]
[419188582,1775013040270,-500.0,0.00013698,2]
[419188583,1775013040280,-500.0,0.00013698,2]
[419188584,1775013040289,-500.0,0.00013698,2]
[419188585,1775013040298,-500.0,0.00013698,2]
[419188586,1775013040308,-500.0,0.00013698,2]
[419188587,1775013040317,-500.0,0.00013698,2]
[419188588,1775013040326,-500.0,0.00013698,2]
[419188589,1775013040335,-500.0,0.00013698,2]
[419188590,1775013040344,-500.0,0.00013698,2]
[419188591,1775013040353,-531.4956433,0.00013698,2]
[419188592,1775013040363,-500.0,0.00013698,2]
[419188593,1775013040372,-509.51900798,0.00013698,2]
[419188594,1775013040381,-500.0,0.00013698,2]
[419188595,1775013040390,-500.0,0.00013698,2]
[419188596,1775013040399,-500.0,0.00013698,2]
[419188597,1775013040410,-567.75072671,0.00013698,2]
[419188598,1775013040419,-500.0,0.00013698,2]
[419188599,1775013040428,-500.0,0.00013698,2]
[419188600,1775013040438,-500.0,0.00013698,2]
[419188601,1775013040447,-490.0,0.00013698,2]
[419188602,1775013040456,-500.0,0.00013698,2]
[419188603,1775013040465,-500.0,0.00013698,2]
[419188604,1775013040475,-500.0,0.00013698,2]
[419188605,1775013040484,-500.0,0.00013698,2]
[419188606,1775013040493,-500.0,0.00013698,2]
[419188607,1775013040502,-500.0,0.00013698,2]
[419188608,1775013040512,-257.58753946,0.00013698,2]
[419188609,1775013040523,-500.0,0.00013698,2]
[419188610,1775013040533,-500.0,0.00013698,2]
[419188611,1775013040544,-500.0,0.00013698,2]
[419188612,1775013040554,-500.0,0.00013698,2]
[419188613,1775013040563,-500.0,0.00013698,2]
[419188614,1775013040573,-500.0,0.00013698,2]
[419188615,1775013040582,-500.0,0.00013698,2]
[419188616,1775013040591,-500.0,0.00013698,2]
[419188617,1775013040600,-500.0,0.00013698,2]
[419188618,1775013040610,-500.0,0.00013698,2]
[419188619,1775013040619,-500.0,0.00013698,2]
[419188620,1775013040629,-500.0,0.00013698,2]
[419188621,1775013040639,-500.0,0.00013698,2]
[419188622,1775013040647,-500.0,0.00013698,2]
[419188623,1775013040656,-500.0,0.00013698,2]
[419188624,1775013040666,-500.0,0.00013698,2]
[419188625,1775013040676,-500.0,0.00013698,2]
[419188626,1775013040686,-500.0,0.00013698,2]
[419188627,1775013040695,-500.0,0.00013698,2]
[419188628,1775013040704,-500.0,0.00013698,2]
[419188629,1775013040715,-500.0,0.00013698,2]
[419188630,1775013040724,-500.0,0.00013698,2]
[419188631,1775013040733,-500.0,0.00013698,2]
[419188632,1775013040742,-500.0,0.00013698,2]
[419188633,1775013040751,-500.0,0.00013698,2]
[419188634,1775013040761,-500.0,0.00013698,2]
[419188635,1775013040771,-500.0,0.00013698,2]
[419188636,1775013040782,-500.0,0.00013698,2]
[419188637,1775013040792,-500.0,0.00013698,2]
[419188638,1775013040803,-500.0,0.00013698,2]
[419188639,1775013040812,-500.0,0.00013698,2]
[419188640,1775013040821,-500.0,0.00013698,2]
[419188641,1775013040832,-500.0,0.00013698,2]
[419188642,1775013040842,-500.0,0.00013698,2]
[419188643,1775013040853,-500.0,0.00013698,2]
[419188644,1775013040863,-500.0,0.00013698,2]
[419188645,1775013040872,-500.0,0.00013698,2]
[419188646,1775013040883,-500.0,0.00013698,2]
[419188647,1775013040893,-500.0,0.00013698,2]
[419188648,1775013040902,-500.0,0.00013698,2]
[419188649,1775013040911,-500.0,0.00013698,2]
[419188650,1775013040921,-500.0,0.00013698,2]
[419188651,1775013040931,-500.0,0.00013698,2]
[419188652,1775013040940,-500.0,0.00013698,2]
[419188653,1775013040949,-500.0,0.00013698,2]
[419188654,1775013040959,-500.0,0.00013698,2]
[419188655,1775013040968,-635.64813742,0.00013698,2]
[419188656,1775013040977,-500.0,0.00013698,2]
[419188657,1775013040986,-500.0,0.00013698,2]
[419188658,1775013040996,-500.0,0.00013698,2]
[419188659,1775013041006,-500.0,0.00013698,2]
[419188660,1775013041015,-500.0,0.00013698,2]
[419188662,1775013041025,-541.27886182,0.00013698,2]
[419188663,1775013041034,-500.0,0.00013698,2]
[419188664,1775013041044,-500.0,0.00013698,2]
[419188665,1775013041053,-500.0,0.00013698,2]
[419188666,1775013041063,-500.0,0.00013698,2]
[419188667,1775013041072,-500.0,0.00013698,2]
[419188668,1775013041081,-500.0,0.00013698,2]
[419188669,1775013041091,-500.0,0.00013698,2]
[419188670,1775013041100,-500.0,0.00013698,2]
[419188671,1775013041109,-500.0,0.00013698,2]
[419188672,1775013041119,-500.0,0.00013698,2]
[419188673,1775013041129,-500.0,0.00013698,2]
[419188674,1775013041138,-500.0,0.00013698,2]
[419188675,1775013041147,-500.0,0.00013698,2]
[419188676,1775013041156,-1190.47,0.00013699,2]
[419188677,1775013041166,-77065.68,0.00013699,2]
[419188678,1775013041175,-4999.99,0.00013699,2]
[419188679,1775013041185,-150.99,0.00013699,2]
[419188680,1775013041196,-299.99,0.00013699,2]
[419188681,1775013041205,-999.99,0.00013699,2]
[419188682,1775013041215,-9999.99,0.00013699,2]
[419188683,1775013041226,-8458.19,0.00013699,2]
[419188685,1775013041235,-9999.99,0.00013699,2]
[419188686,1775013041244,-175.69,0.00013699,2]
[419188687,1775013041254,-150.0,0.00013699,2]
[419188688,1775013041264,-150.0,0.00013699,2]
[419188689,1775013041275,-596.55,0.00013699,2]
[419188690,1775013041284,-158.5,0.00013699,2]
[419188691,1775013041295,-792.51,0.00013699,2]
[419188692,1775013041306,-500.0,0.00013699,2]
[419188693,1775013041316,-500.0,0.00013699,2]
[419188694,1775013041325,-627.00850068,0.00013699,2]
[419188695,1775013041334,-500.41125099,0.00013699,2]
[419188696,1775013041343,-500.0,0.00013699,2]
[419188697,1775013041352,-500.0,0.00013699,2]
[419188698,1775013041361,-500.0,0.00013699,2]
[419188699,1775013041370,-500.0,0.00013699,2]
[419188700,1775013041379,-500.0,0.00013699,2]
[419188701,1775013041388,-330.62596809,0.00013699,2]
[419188702,1775013041398,-500.0,0.00013699,2]
[419188703,1775013041407,-500.0,0.00013699,2]
[419188704,1775013041416,-500.0,0.00013699,2]
[419188705,1775013041425,-500.0,0.00013699,2]
[419188706,1775013041434,-500.70157499,0.00013699,2]
[419188707,1775013041443,-500.0,0.00013699,2]
[419188708,1775013041452,-500.0,0.00013699,2]
[419188709,1775013041461,-502.18739931,0.00013699,2]
[419188710,1775013041470,-500.58577101,0.00013699,2]
[419188711,1775013041479,-500.0,0.00013699,2]
[419188712,1775013041488,-500.56743432,0.00013699,2]
[419188713,1775013041497,-500.0,0.00013699,2]
[419188714,1775013041506,-500.0,0.00013699,2]
[419188715,1775013041517,-500.0,0.00013699,2]
[419188716,1775013041527,-1000.0,0.00013699,7]
[419188717,1775013041537,-500.5586272,0.00013699,2]
[419188718,1775013041546,-500.0,0.00013699,2]
[419188719,1775013041557,-312.57026801,0.00013699,2]
[419188720,1775013041566,-500.0,0.00013699,2]
[419188721,1775013041575,-500.0,0.00013699,2]
[419188722,1775013041584,-500.0,0.00013699,2]
[419188723,1775013041593,-342.86927072,0.00013699,2]
[419188724,1775013041603,-500.0,0.00013699,2]
[419188725,1775013041613,-184.58060457,0.00013699,2]
[419188726,1775013041622,-500.0,0.00013852,2]
[419188727,1775013041631,-500.0,0.00013852,2]
[419188728,1775013041645,-500.0,0.00013852,2]
[419188729,1775013041925,-500.0,0.00013852,2]
[419188730,1775013041935,-500.0,0.00013852,2]
[419188731,1775013041945,-500.0,0.00013852,2]
[419188732,1775013041955,-500.0,0.00013852,2]
[419188733,1775013041964,-518.86627017,0.00013852,2]
[419188734,1775013041974,-500.0,0.00013852,2]
[419188735,1775013041983,-500.0,0.00013852,2]
[419188736,1775013041993,-508.08439173,0.00013852,2]
[419188737,1775013042003,-500.0,0.00013852,2]
[419188738,1775013042014,-500.0,0.00013852,2]
[419188739,1775013042023,-500.0,0.00013852,2]
[419188740,1775013042036,-500.0,0.00013852,2]
[419188741,1775013042046,-500.0,0.00013852,2]
[419188742,1775013042056,-500.0,0.00013852,2]
[419188743,1775013042065,-500.0,0.00013852,2]
[419188744,1775013042075,-500.0,0.00013852,2]
[419188745,1775013042086,-500.0,0.00013852,2]
[419188746,1775013042096,-539.48062383,0.00013852,2]
[419188747,1775013042105,-435.57567252,0.00013852,2]
[419188748,1775013042115,-500.0,0.00013852,2]
[419188749,1775013042124,-500.0,0.00013852,2]
[419188750,1775013042133,-500.0,0.00013852,2]
[419188751,1775013042142,-500.0,0.00013852,2]
[419188752,1775013042152,-500.0,0.00013852,2]
[419188753,1775013042161,-500.0,0.00013852,2]
[419188754,1775013042170,-668.77,0.00013942,30]
[419188755,1775013042179,-28704.32350983,0.00014006,2]
[419188756,1775013042189,-318.9078,0.000141,17]
[419188757,1775013042199,-500.73007904,0.00014247,2]
[419188758,1775013042208,-500.63671688,0.00014247,2]
[419188759,1775013042218,-227.65683647,0.00014247,2]
[419188760,1775013042227,-500.6349201,0.00014247,2]
[419188761,1775013042236,-1000.0,0.00014247,2]
[419188762,1775013042246,-500.59182813,0.00014247,2]
[419188763,1775013042255,-1000.0,0.00014247,2]
[419188764,1775013042264,-501.44844285,0.00014247,2]
[419188765,1775013042274,-1000.0,0.00014247,2]
[419188766,1775013042283,-1000.0,0.00014247,2]
[419188767,1775013042292,-1000.0,0.00014247,2]
[419188768,1775013042301,-1000.0,0.00014247,2]
[419188769,1775013042311,-1000.0,0.00014247,2]
[419188770,1775013042320,-1000.0,0.00014247,2]
[419188771,1775013042329,-1002.24529505,0.00014247,2]
[419188772,1775013042339,-502.62350746,0.00014247,2]
[419188773,1775013042350,-1002.10813048,0.00014247,2]
[419188774,1775013042359,-501.12817302,0.00014247,2]
[419188775,1775013042368,-501.10287007,0.00014247,2]
[419188776,1775013042377,-1000.87578443,0.00014247,2]
[419188777,1775013042386,-289.69673863,0.00014247,2]
[419188778,1775013042396,-596.55,0.00014384,2]
[419188779,1775013042405,-10401.32412408,0.0001439,2]
[419188780,1775013042414,-504.0,0.00014397,3]
[419188781,1775013042423,-182.92543932,0.00014503,2]
[419188782,1775013042434,-1600.0,0.00014542,2]
[419188783,1775013042445,-500.0,0.00014573,2]
[419188784,1775013042456,-500.37557038,0.00014573,2]
[419188785,1775013042466,-286.90994459,0.00014573,2]
[419188786,1775013042475,-500.66965693,0.00014573,2]
[419188787,1775013042484,-500.0,0.00014573,2]
[419188788,1775013042494,-4609.0,0.00014638,2]
[419188789,1775013042503,-389.16827,0.000147,7]
[419188790,1775013042512,-891.69,0.00014701,30]
[419188791,1775013042521,-3553.73822519,0.00014765,2]
[419188792,1775013042531,-1398.90293181,0.00014795,2]
[419188793,1775013042540,-1486.46259827,0.00014795,2]
[419188794,1775013042550,-1500.0,0.00014795,2]
[419188795,1775013042559,-501.22953411,0.00014795,2]
[419188796,1775013042568,-1472.15232345,0.00014795,2]
[419188797,1775013042577,-185.74657636,0.00014795,2]
[419188798,1775013042586,-1500.0,0.00014795,2]
[419188799,1775013042595,-1501.33445618,0.00014795,2]
[419188800,1775013042604,-258.382854,0.00014818,7]
[419188801,1775013042613,-229.19353963,0.000149,2]
[419188802,1775013042622,-229.19353962,0.000149,2]
[419188803,1775013042632,-229.19353962,0.000149,2]
[419188805,1775013042641,-454.304338,0.00014901,7]
[419188806,1775013042650,-160.0,0.00014907,7]
[419188807,1775013042659,-1480.104518,0.00014907,7]
[419188808,1775013042668,-2800.209037,0.00014907,7]
[419188809,1775013042678,-160.0,0.00014907,7]
[419188810,1775013042687,-1321.256382,0.00014907,7]
[419188811,1775013042696,-2482.512765,0.00014907,7]
[419188812,1775013042706,-2066.24561167,0.00015,2]
[419188813,1775013042715,-5000.83530931,0.00015,2]
[419188814,1775013042724,-4598.71749695,0.00015,7]
[419188815,1775013042733,-596.55,0.00015068,2]
[419188816,1775013042742,-1000.0,0.00015121,2]
[419188817,1775013042751,-10000.0,0.00015205,2]
[419188818,1775013042760,-795.24506722,0.00015211,2]
[419188819,1775013042770,-495.62,0.00015229,2]
[419188820,1775013042781,-502.25066653,0.00015342,2]
[419188821,1775013042791,-500.0,0.00015342,2]
[419188822,1775013042801,-160.0,0.00015375,2]
[419188823,1775013042810,-176.894668,0.00015435,7]
[419188824,1775013042819,-1114.61,0.00015459,30]
[419188825,1775013042828,-410.0685,0.000155,22]
[419188826,1775013042838,-495.62,0.00015503,2]
[419188827,1775013042848,-3178.66,0.00015507,2]
[419188828,1775013042857,-733.14110028,0.00015634,2]
[419188830,1775013042869,-206.501972,0.00015646,7]
[419188831,1775013042879,-2018.324344,0.00015652,7]
[419188832,1775013042888,-1801.713249,0.00015652,7]
[419188833,1775013042898,-781.0056123,0.00015668,2]
[419188834,1775013042908,-194.303005,0.0001568,7]
[419188835,1775013042917,-200.442457,0.0001568,7]
[419188836,1775013042927,-504.0,0.00015684,4]
[419188837,1775013042936,-596.55,0.00015753,2]
[419188838,1775013042945,-495.62,0.00015777,2]
[419188839,1775013042954,-1600.0,0.00015864,2]
[419188840,1775013042963,-500.0,0.0001589,2]
[419188841,1775013042972,-500.0,0.0001589,2]
[419188842,1775013042982,-500.0,0.0001589,2]
[419188844,1775013042991,-518.60923739,0.0001589,2]
[419188846,1775013043000,-3178.66,0.00015895,2]
[419188847,1775013043010,-620.22257606,0.00015899,2]
[419188848,1775013043020,-500.0,0.00015899,2]
[419188849,1775013043030,-150.0,0.000159,2]
[419188850,1775013043040,-162.52028059,0.000159,2]
[419188851,1775013043050,-350.57119261,0.00015951,2]
[419188852,1775013043059,-500.0,0.0001597,2]
[419188853,1775013043068,-607.84144627,0.0001599,2]
[419188854,1775013043078,-607.84144627,0.0001599,2]
[419188855,1775013043087,-666.0,0.00015999,2]
[419188856,1775013043097,-500.0,0.00015999,2]
[419188857,1775013043107,-500.0,0.00015999,2]
[419188858,1775013043116,-445.36727502,0.00015999,2]
[419188859,1775013043126,-5157235.95274936,0.00016,2]
[419188860,1775013043136,-1806793.50354205,0.00016,2]
[419188861,1775013043147,-1825.17913113,0.00016,2]
[419188862,1775013043158,-495.62,0.00016051,2]
[419188863,1775013043167,-160.0,0.000161,2]
[419188864,1775013043177,-288.86911169,0.00016101,2]
[419188865,1775013043187,-6453.0,0.00016102,2]
[419188866,1775013043197,-574.0,0.00016111,2]
[419188867,1775013043206,-6564.79442548,0.00016164,2]
[419188868,1775013043216,-4309.75289906,0.00016164,2]
[419188869,1775013043225,-5000.00731919,0.000162,5]
[419188870,1775013043235,-1337.53,0.00016217,30]